[Event "2nd Turkish League 2017"]
[Site "Konya"]
[Date "2017.07.19"]
[Round "4"]
[White "Kutlu, Sedat"]
[Black "Erkole, Melih Naci"]
[Result "1/2-1/2"]
[ECO "C00"]
[WhiteElo "1824"]
[BlackElo "1619"]
[Annotator "NA"]
[PlyCount "155"]
[EventType "team-tourn"]
[EventCountry "TUR"]
[SourceTitle "playchess.com"]
[Source "ChessBase"]
[SourceQuality "1"]
[TimeControl "5400+30"]

1. e4 {[%emt 0:00:30] 5} c5 {[%emt 0:01:00] 5} 2. f4 {[%emt 0:00:30] 5} e6 {[%emt 0:01:30]} 3. Nf3 {[%emt 0:00:30]} Nc6 {[%emt 0:00:00]} 4. Be2 {[%emt 0:00:30]} d5 {[%emt 0:02:00]} 5. e5 {[%emt 0:01:30]} h5 {[%emt 0:03:30]} 6. Nc3 {[%emt 0:00:30]} Nh6 {[%emt 0:04:30]} 7. O-O {[%emt 0:04:30]} Nf5 {[%emt 0:02:30]} 8. b3 {[%emt 0:00:30]} h4 {[%emt 0:06:30]} 9. Bd3 {[%emt 0:09:30]} Nce7 {[%emt 0:09:30]} 10. Ba3 {[%emt 0:04:30]} Qa5 $11 {[%emt 0:05:30]} 11. Qc1 {[%emt 0:12:30]} Bd7 {[%emt 0:02:30]} 12. Rb1 {[%emt 0:01:30]} b5 {[%emt 0:33:30]} 13. Bxc5 {[%emt 0:09:30]} b4 {[%emt 0:07:45]} 14. Bxe7 {[%emt 0:00:30] 4} Qb6+ {[%emt 0:00:20]} 15. Rf2 {[%emt 0:00:00] ]} Bxe7 {[%emt 0:00:27]} 16. Bxf5 {[%emt 0:00:00] 8} bxc3 {[%emt 0:03:06]} 17. Bh3 {[%emt 0:03:30] 2} cxd2 {[%emt 0:01:30]} 18. Qxd2 {[%emt 0:00:30] ]} Bc5 {[%emt 0:00:00]} 19. Rbf1 {[%emt 0:00:30] 7} Bb5 {[%emt 0:02:58]} 20. Kh1 {[%emt 0:00:30] 4} Bxf1 {[%emt 0:00:49]} 21. Rxf1 {[%emt 0:00:00] 5} Be3 {[%emt 0:00:18]} 22. Qe1 {[%emt 0:03:00] 1} Rc8 {[%emt 0:00:34]} 23. f5 {[%emt 0:02:30] ]} Rxc2 {[%emt 0:01:53]} 24. fxe6 {[%emt 0:00:30] 0} fxe6 {[%emt 0:00:18]} 25. Qb1 {[%emt 0:01:30] 2} Qc5 {[%emt 0:05:30]} 26. Ne1 {[%emt 0:01:30] 2} Rf2 {[%emt 0:01:47]} 27. Qg6+ {[%emt 0:00:30] 4} Kf8 {[%emt 0:00:30]} 28. Rxf2+ {[%emt 0:00:30] ]} Bxf2 {[%emt 0:00:30]} 29. Bxe6 {[%emt 0:00:30] 5} Qe7 {[%emt 0:00:30]} 30. Nd3 {[%emt 0:00:30] 4} Bb6 {[%emt 0:01:28]} 31. Nf4 {[%emt 0:07:30] ]} Qc7 {[%emt 0:01:17]} 32. Qf5+ {[%emt 0:08:30] 0} Ke8 {[%emt 0:00:10]} 33. Nd3 {[%emt 0:04:30] 0} Rf8 {[%emt 0:00:55]} 34. Qg6+ {[%emt 0:01:30] 5} Kd8 {[%emt 0:00:02]} 35. Bf5 {[%emt 0:03:53]} Bd4 {[%emt 0:01:57]} 36. Qe6 {[%emt 0:00:51]} Rxf5 {[%emt 0:00:52]} 37. Qxf5 {[%emt 0:00:42]} Qc2 {[%emt 0:00:19]} 38. Qf8+ {[%emt 0:02:14]} Kd7 {[%emt 0:00:10]} 39. Qxg7+ {[%emt 0:00:20]} Ke8 {[%emt 0:00:14]} 40. Qh8+ {[%emt 0:03:53]} Kd7 {[%emt 0:00:16]} 41. e6+ {[%emt 0:00:37]} Kxe6 {[%emt 0:00:50]} 42. Qxd4 {[%emt 0:01:52]} Qd1+ {[%emt 0:00:10]} 43. Qg1 {[%emt 0:00:00]} Qxd3 {[%emt 0:00:01]} 44. Qxa7 {[%emt 0:01:50]} Qb1+ {[%emt 0:00:01]} 45. Qg1 {[%emt 0:00:30]} Qxa2 {[%emt 0:00:04]} 46. b4 {[%emt 0:00:27]} Qc4 {[%emt 0:00:30]} 47. Qe1+ {[%emt 0:01:33]} Kd6 {[%emt 0:00:59]} 48. Kg1 {[%emt 0:00:04]} d4 {[%emt 0:00:00]} 49. Qxh4 {[%emt 0:00:49]} Qc1+ {[%emt 0:00:22]} 50. Kf2 {[%emt 0:00:49]} Qd2+ {[%emt 0:00:01]} 51. Kf1 {[%emt 0:00:51]} Qxb4 {[%emt 0:00:14]} 52. Qf6+ {[%emt 0:00:47]} Kd5 {[%emt 0:00:12]} 53. Qf7+ {[%emt 0:01:00]} Ke5 {[%emt 0:00:16]} 54. Qf2 {[%emt 0:00:56]} Kd5 {[%emt 0:00:21]} 55. Qa2+ {[%emt 0:01:43]} Ke5 {[%emt 0:00:41]} 56. Qe2+ {[%emt 0:01:40]} Kd6 {[%emt 0:00:31] [%clk 0:04.24]} 57. Kf2 {[%emt 0:00:28]} Qc3 {[%emt 0:00:28]} 58. Qe1 {[%emt 0:00:24]} Qd3 {[%emt 0:00:37]} 59. Qe2 {[%emt 0:00:30]} Qc3 {[%emt 0:00:17]} 60. Qa6+ {[%emt 0:01:50]} Ke5 {[%emt 0:00:24]} 61. Qb5+ {[%emt 0:00:22]} Ke4 {[%emt 0:00:24]} 62. Qe8+ {[%emt 0:00:08]} Kd5 {[%emt 0:00:21]} 63. Qf7+ {[%emt 0:00:12]} Kc5 {[%emt 0:01:53]} 64. Qc7+ {[%emt 0:02:40]} Kb4 {[%emt 0:00:31]} 65. Qb6+ {[%emt 0:00:18]} Ka3 {[%emt 0:00:04]} 66. Qa6+ {[%emt 0:01:09]} Kb2 {[%emt 0:00:18]} 67. Qb6+ {[%emt 0:00:47]} Kc1 {[%emt 0:00:30]} 68. Qh6+ {[%emt 0:00:51]} Kc2 {[%emt 0:01:58]} 69. h4 {[%emt 0:00:44]} d3 {[%emt 0:00:36]} 70. Qa6 {[%emt 0:01:21]} d2 {[%emt 0:01:55]} 71. Qa4+ {[%emt 0:00:41]} Kc1 {[%emt 0:00:33]} 72. Qf4 {[%emt 0:00:29]} Kb2 {[%emt 0:01:21]} 73. Ke2 {[%emt 0:00:18]} Kc1 {[%emt 0:00:00]} 74. h5 {[%emt 0:00:43]} Kc2 {[%emt 0:00:40]} 75. Qf5+ {[%emt 0:00:34]} Kc1 {[%emt 0:00:05]} 76. Qf4 {[%emt 0:00:11]} Kc2 {[%emt 0:00:46]} 77. Qf5+ {[%emt 0:00:03]} Kc1 {[%emt 0:00:30]} 78. Qf4 {[%emt 0:00:04]} 1/2-1/2

[Event "2nd Turkish League 2017"]
[Site "Konya"]
[Date "2017.07.19"]
[Round "4"]
[White "Simsek, Meltem"]
[Black "Bayrak, Asli"]
[Result "0-1"]
[ECO "A08"]
[WhiteElo "1752"]
[BlackElo "2056"]
[Annotator "NA"]
[PlyCount "94"]
[EventType "team-tourn"]
[EventCountry "TUR"]
[SourceTitle "playchess.com"]
[Source "ChessBase"]
[SourceQuality "1"]
[TimeControl "5400+30"]

1. Nf3 {[%emt 0:00:30]} d5 {[%emt 0:01:00]} 2. g3 {[%emt 0:00:00]} Nf6 {[%emt 0:03:30]} 3. Bg2 {[%emt 0:00:00]} e6 {[%emt 0:07:30]} 4. O-O {[%emt 0:00:30]} c5 {[%emt 0:02:30]} 5. d3 {[%emt 0:07:30]} Nc6 {[%emt 0:02:30]} 6. Nbd2 {[%emt 0:00:30]} Be7 {[%emt 0:09:30]} 7. e4 {[%emt 0:02:30]} dxe4 {[%emt 0:05:30]} 8. dxe4 {[%emt 0:00:30]} e5 {[%emt 0:00:00]} 9. c3 {[%emt 0:01:30] LiveBook: 8 Games} O-O {[%emt 0:05:00]} 10. a4 {[%emt 0:07:30]} Qc7 {[%emt 0:01:30]} 11. Qe2 {[%emt 0:05:30]} Na5 $11 {[%emt 0:04:30]} 12. b3 {[%emt 0:04:30]} Be6 {[%emt 0:02:30]} 13. Rb1 {[%emt 0:01:30]} Rfd8 {[%emt 0:12:30]} 14. h3 {[%emt 0:03:30]} h6 {[%emt 0:03:30]} 15. Ba3 {[%emt 0:06:30]} Nc6 {[%emt 0:05:30]} 16. Rfd1 {[%emt 0:18:30]} b6 {[%emt 0:03:30]} 17. Kh2 {[%emt 0:01:30]} Nh7 {[%emt 0:07:30]} 18. Ne1 {[%emt 0:05:30]} Bg5 {[%emt 0:03:59]} 19. Nef3 {[%emt 0:01:30]} Be7 {[%emt 0:02:16]} 20. Ne1 {[%emt 0:00:30]} Rd7 {[%emt 0:01:17]} 21. Nc2 {[%emt 0:09:30]} Bg5 {[%emt 0:02:32]} 22. Ne3 {[%emt 0:05:43]} Bxe3 {[%emt 0:00:35]} 23. Qxe3 {[%emt 0:00:30]} Rad8 {[%emt 0:00:30]} 24. Bf1 {[%emt 0:01:31]} Na5 {[%emt 0:01:29]} 25. Be2 {[%emt 0:03:05]} c4 {[%emt 0:02:10]} 26. b4 {[%emt 0:01:22]} Nb3 {[%emt 0:00:32]} 27. Nxb3 {[%emt 0:00:48]} Rxd1 {[%emt 0:01:47]} 28. Rxd1 {[%emt 0:01:35]} Rxd1 {[%emt 0:00:41]} 29. Bxd1 {[%emt 0:00:30]} cxb3 {[%emt 0:00:00]} 30. Qd2 {[%emt 0:00:56]} Ng5 {[%emt 0:01:00]} 31. Qd3 {[%emt 0:03:07]} Nxh3 {[%emt 0:00:47]} 32. Kg2 {[%emt 0:01:14]} Ng5 {[%emt 0:01:06]} 33. b5 {[%emt 0:00:17]} Bc4 {[%emt 0:01:45]} 34. Qb1 {[%emt 0:02:47]} Qd7 {[%emt 0:00:59]} 35. g4 {[%emt 0:02:36]} Qd2 {[%emt 0:00:29]} 36. Bxb3 {[%emt 0:00:44]} Bxb3 {[%emt 0:00:37]} 37. Qxb3 {[%emt 0:00:30]} Nxe4 {[%emt 0:00:00]} 38. Qb2 {[%emt 0:00:00]} Qf4 {[%emt 0:01:58]} 39. c4 {[%emt 0:01:37]} Qxg4+ {[%emt 0:00:13]} 40. Kf1 {[%emt 0:00:17]} Qd1+ {[%emt 0:01:02]} 41. Kg2 {[%emt 0:00:17]} Qg4+ {[%emt 0:00:44]} 42. Kf1 {[%emt 0:00:21]} Qf4 {[%emt 0:00:29]} 43. Bb4 {[%emt 0:01:13]} h5 {[%emt 0:00:18]} 44. Be1 {[%emt 0:00:18]} h4 {[%emt 0:00:58]} 45. Kg2 {[%emt 0:00:37]} Ng5 {[%emt 0:00:53]} 46. Qe2 {[%emt 0:00:40]} h3+ {[%emt 0:00:38]} 47. Kh1 {[%emt 0:00:21]} Nf3 {[%emt 0:00:28]} 0-1

[Event "2nd Turkish League 2017"]
[Site "Konya"]
[Date "2017.07.19"]
[Round "4"]
[White "Keskin, Suara"]
[Black "Turkkan, Ece"]
[Result "1-0"]
[ECO "A07"]
[WhiteElo "1716"]
[BlackElo "1532"]
[Annotator "NA"]
[PlyCount "69"]
[EventType "team-tourn"]
[EventCountry "TUR"]
[SourceTitle "playchess.com"]
[Source "ChessBase"]
[SourceQuality "1"]
[TimeControl "5400+30"]

1. Nf3 {[%emt 0:00:30]} Nf6 {[%emt 0:01:00]} 2. g3 {[%emt 0:00:30]} d5 {[%emt 0:00:30]} 3. Bg2 {[%emt 0:00:00]} c6 {[%emt 0:00:30]} 4. d3 {[%emt 0:00:00]} e6 {[%emt 0:00:00]} 5. O-O {[%emt 0:00:30]} Be7 {[%emt 0:00:00]} 6. Nbd2 {[%emt 0:00:30]} Nbd7 {[%emt 0:00:30]} 7. e4 {[%emt 0:00:30]} Qc7 {[%emt 0:06:30]} 8. c3 {[%emt 0:02:30]} O-O {[%emt 0:00:30]} 9. Qc2 {[%emt 0:00:00]} b6 {[%emt 0:04:30]} 10. h3 {[%emt 0:03:00]} Bb7 {[%emt 0:02:30]} 11. Re1 {[%emt 0:00:30]} c5 {[%emt 0:12:30]} 12. e5 {[%emt 0:15:30]} Ne8 {[%emt 0:01:30]} 13. Nf1 {[%emt 0:00:30]} Rc8 {[%emt 0:15:30]} 14. N1h2 {[%emt 0:02:30]} Qd8 {[%emt 0:05:30]} 15. Qa4 {[%emt 0:03:30]} Nc7 {[%emt 0:13:30]} 16. Bf4 {[%emt 0:04:30]} d4 {[%emt 0:05:30]} 17. cxd4 {[%emt 0:02:30]} cxd4 {[%emt 0:07:30]} 18. Qxd4 {[%emt 0:09:30]} Bc5 {[%emt 0:01:30]} 19. Qa4 {[%emt 0:00:30]} Nd5 {[%emt 0:01:16]} 20. Bg5 {[%emt 0:01:30]} Be7 {[%emt 0:01:39]} 21. Qg4 {[%emt 0:01:30]} Kh8 {[%emt 0:10:17]} 22. h4 {[%emt 0:19:30]} Nc5 {[%emt 0:02:31]} 23. d4 {[%emt 0:01:30]} Nd3 {[%emt 0:00:28]} 24. Re2 {[%emt 0:01:30]} Ba6 {[%emt 0:00:29]} 25. Bxe7 {[%emt 0:01:30]} Qxe7 {[%emt 0:00:44]} 26. Rd2 {[%emt 0:03:30]} Rc7 {[%emt 0:04:18]} 27. a3 {[%emt 0:00:30]} Nc1 {[%emt 0:01:13]} 28. Rd1 {[%emt 0:05:52]} Nd3 {[%emt 0:00:44]} 29. Rab1 {[%emt 0:02:06]} Rfc8 {[%emt 0:00:50]} 30. Bf1 {[%emt 0:00:10]} Nxf2 {[%emt 0:00:51]} 31. Kxf2 {[%emt 0:00:24]} Rc2+ {[%emt 0:00:29]} 32. Rd2 {[%emt 0:00:38]} Rxd2+ {[%emt 0:00:42]} 33. Nxd2 {[%emt 0:00:02]} Rc2 {[%emt 0:00:09]} 34. Qd1 {[%emt 0:00:17]} Qc7 {[%emt 0:01:03]} 35. Bxa6 {[%emt 0:00:09]} 1-0

[Event "2nd Turkish League 2017"]
[Site "Konya"]
[Date "2017.07.19"]
[Round "4"]
[White "Ozkurt, Kutay"]
[Black "Yakar, Ozan Tuna"]
[Result "0-1"]
[ECO "A03"]
[WhiteElo "1712"]
[BlackElo "1718"]
[Annotator "NA"]
[PlyCount "60"]
[EventType "team-tourn"]
[EventCountry "TUR"]
[SourceTitle "playchess.com"]
[Source "ChessBase"]
[SourceQuality "1"]
[TimeControl "5400+30"]

1. f4 {[%emt 0:00:30]} Nf6 {[%emt 0:02:00]} 2. g3 {[%emt 0:00:00]} c5 {[%emt 0:00:30]} 3. Bg2 {[%emt 0:00:00]} Nc6 {[%emt 0:01:30]} 4. Nf3 {[%emt 0:00:00]} g6 {[%emt 0:00:30]} 5. O-O {[%emt 0:00:00]} Bg7 {[%emt 0:00:30]} 6. d3 {[%emt 0:00:30]} d5 {[%emt 0:00:30]} 7. Qe1 {[%emt 0:00:30]} O-O {[%emt 0:01:30]} 8. Bd2 {[%emt 0:00:00]} Re8 {[%emt 0:14:30]} 9. Na3 {[%emt 0:02:00]} e5 {[%emt 0:11:30]} 10. fxe5 {[%emt 0:03:30]} Nxe5 {[%emt 0:01:30]} 11. Nxe5 {[%emt 0:00:30]} Rxe5 {[%emt 0:00:30]} 12. Bf4 {[%emt 0:00:00]} Re6 {[%emt 0:13:30]} 13. Nb5 {[%emt 0:02:00]} Nh5 {[%emt 0:02:30]} 14. Bxd5 {[%emt 0:04:30]} Nxf4 {[%emt 0:05:30]} 15. Rxf4 {[%emt 0:00:00]} Qxd5 {[%emt 0:00:30]} 16. Nc7 {[%emt 0:04:00]} Bd4+ {[%emt 0:03:30]} 17. Rf2 {[%emt 0:07:30]} Qc6 {[%emt 0:03:30]} 18. Nxa8 {[%emt 0:00:30]} b6 {[%emt 0:00:30]} 19. h3 {[%emt 0:07:30]} Bb7 {[%emt 0:03:30]} 20. Kh2 {[%emt 0:00:30]} Bxf2 {[%emt 0:00:30]} 21. Qxf2 {[%emt 0:00:00]} Rf6 {[%emt 0:00:30]} 22. Qg1 {[%emt 0:00:00]} Bxa8 {[%emt 0:00:30]} 23. e4 {[%emt 0:00:30]} Qd6 {[%emt 0:01:30]} 24. Re1 {[%emt 0:01:30]} Re6 {[%emt 0:02:30]} 25. Qf2 {[%emt 0:00:30]} Kg7 {[%emt 0:01:30]} 26. Qe3 {[%emt 0:01:30]} Qe5 {[%emt 0:00:30]} 27. Qf4 {[%emt 0:02:30]} Qxb2 {[%emt 0:02:30]} 28. Re2 {[%emt 0:01:30]} Qe5 {[%emt 0:00:00]} 29. Qh4 {[%emt 0:00:30]} Qf6 {[%emt 0:03:00]} 30. Qg4 {[%emt 0:00:30]} h5 {[%emt 0:00:00]} 0-1

[Event "2nd Turkish League 2017"]
[Site "Konya"]
[Date "2017.07.19"]
[Round "4"]
[White "Kuru, Ferhat"]
[Black "Suzan, Ufuk"]
[Result "0-1"]
[ECO "C22"]
[WhiteElo "1681"]
[BlackElo "1813"]
[Annotator "NA"]
[PlyCount "60"]
[EventType "team-tourn"]
[EventCountry "TUR"]
[SourceTitle "playchess.com"]
[Source "ChessBase"]
[SourceQuality "1"]
[TimeControl "5400+30"]

1. e4 {[%emt 0:00:30]} e5 {[%emt 0:01:00]} 2. d4 {[%emt 0:00:30]} exd4 {[%emt 0:00:30]} 3. Qxd4 {[%emt 0:00:30]} Nc6 {[%emt 0:00:30]} 4. Qe3 {[%emt 0:00:30]} Nf6 {[%emt 0:02:30]} 5. Nc3 {[%emt 0:02:30]} Bb4 {[%emt 0:01:30]} 6. Bd2 {[%emt 0:04:30]} O-O {[%emt 0:02:30]} 7. O-O-O {[%emt 0:03:30]} d6 {[%emt 0:03:30]} 8. f3 {[%emt 0:04:30]} Re8 {[%emt 0:01:30]} 9. Bc4 {[%emt 0:00:30]} Na5 $11 {[%emt 0:01:30] LiveBook: 6 Games} (9... Ne5 $15 10. Bb3 Bd7) 10. Be2 {[%emt 0:02:30]} Be6 {[%emt 0:04:30]} 11. a3 {[%emt 0:09:30]} Bc5 {[%emt 0:00:30]} 12. Qg5 {[%emt 0:01:30]} Nc4 {[%emt 0:01:30]} 13. Bxc4 {[%emt 0:01:30]} Bxc4 {[%emt 0:00:30]} 14. g4 {[%emt 0:02:30]} b5 {[%emt 0:00:30]} 15. b4 {[%emt 0:22:30]} Bb6 {[%emt 0:02:30]} 16. Nce2 {[%emt 0:01:30]} a5 {[%emt 0:06:30]} 17. Bc3 {[%emt 0:02:30]} axb4 {[%emt 0:00:30]} 18. axb4 {[%emt 0:01:30]} h6 {[%emt 0:04:30]} 19. Qf4 {[%emt 0:01:30]} Qb8 {[%emt 0:04:30]} 20. Bxf6 {[%emt 0:05:30]} gxf6 {[%emt 0:01:30]} 21. Qxh6 {[%emt 0:00:30]} Qa7 {[%emt 0:01:30]} 22. Kd2 {[%emt 0:02:30]} Qa3 {[%emt 0:01:30]} 23. Qxf6 {[%emt 0:07:30]} Re5 {[%emt 0:10:30]} 24. Rb1 {[%emt 0:13:03]} Qe3+ {[%emt 0:02:30]} 25. Kd1 {[%emt 0:02:28]} Qf2 {[%emt 0:00:30]} 26. Nf4 {[%emt 0:02:58]} Qf1+ {[%emt 0:00:30]} 27. Kd2 {[%emt 0:00:08]} Qxb1 {[%emt 0:00:30]} 28. Nge2 {[%emt 0:02:48]} Qxb4+ {[%emt 0:00:30]} 29. c3 {[%emt 0:01:19]} Ra2+ {[%emt 0:00:30]} 30. Kd1 {[%emt 0:00:56]} Qb3+ {[%emt 0:00:30]} 0-1

[Event "2nd Turkish League 2017"]
[Site "Konya"]
[Date "2017.07.19"]
[Round "4"]
[White "Ilkbahar, Nimet Seray"]
[Black "Ozsoy, Damla"]
[Result "1/2-1/2"]
[ECO "B22"]
[WhiteElo "1618"]
[BlackElo "1490"]
[Annotator "NA"]
[PlyCount "91"]
[EventType "team-tourn"]
[EventCountry "TUR"]
[SourceTitle "playchess.com"]
[Source "ChessBase"]
[SourceQuality "1"]
[TimeControl "5400+30"]

1. e4 {[%emt 0:00:30]} c5 {[%emt 0:01:00]} 2. c3 {[%emt 0:00:00]} d5 {[%emt 0:00:30]} 3. exd5 {[%emt 0:00:00]} Qxd5 {[%emt 0:00:30]} 4. d4 {[%emt 0:00:00]} cxd4 {[%emt 0:00:00]} 5. cxd4 {[%emt 0:03:00]} Nc6 {[%emt 0:00:00]} 6. Nf3 {[%emt 0:01:30]} e5 {[%emt 0:00:00]} 7. dxe5 {[%emt 0:06:30]} Qxd1+ {[%emt 0:00:00]} 8. Kxd1 {[%emt 0:00:30]} Bg4 {[%emt 0:00:00]} 9. Bf4 {[%emt 0:04:30]} O-O-O+ {[%emt 0:01:00]} 10. Nbd2 {[%emt 0:02:30]} Bb4 {[%emt 0:09:30]} 11. Be2 {[%emt 0:13:30]} Bxf3 {[%emt 0:14:30]} 12. Bxf3 {[%emt 0:00:30]} Bxd2 {[%emt 0:03:30]} 13. Bxd2 {[%emt 0:00:30]} Nxe5 {[%emt 0:00:30]} 14. Rc1+ {[%emt 0:00:30]} Kb8 {[%emt 0:00:30]} 15. Ke2 {[%emt 0:00:30]} Nxf3 {[%emt 0:00:30]} 16. Bf4+ {[%emt 0:00:30]} Ka8 {[%emt 0:00:30]} 17. Kxf3 {[%emt 0:00:30]} Ne7 {[%emt 0:00:30]} 18. Rhd1 {[%emt 0:00:30]} Nc6 {[%emt 0:00:30]} 19. Ke2 {[%emt 0:18:30]} Rhe8+ {[%emt 0:18:30]} 20. Kf1 {[%emt 0:00:30]} a6 {[%emt 0:03:30]} 21. Bc7 {[%emt 0:01:30]} Rxd1+ {[%emt 0:02:30]} 22. Rxd1 {[%emt 0:01:30]} Re7 {[%emt 0:00:30]} 23. Bb6 {[%emt 0:00:30]} f5 {[%emt 0:05:30]} 24. a3 {[%emt 0:04:30]} Kb8 {[%emt 0:01:30]} 25. Re1 {[%emt 0:03:30]} Kc8 {[%emt 0:02:30]} 26. Rxe7 {[%emt 0:02:30]} Nxe7 {[%emt 0:00:30]} 27. Ke2 {[%emt 0:00:00]} Kd7 {[%emt 0:00:30]} 28. Bd4 {[%emt 0:00:00]} g6 {[%emt 0:01:30]} 29. Kf3 {[%emt 0:04:30]} Nd5 {[%emt 0:02:30]} 30. g4 {[%emt 0:03:30]} fxg4+ {[%emt 0:01:30]} 31. Kxg4 {[%emt 0:00:30]} Ke6 {[%emt 0:02:30]} 32. Kg5 {[%emt 0:02:30]} Ne7 {[%emt 0:00:00]} 33. Bc3 {[%emt 0:02:30]} Nf5 {[%emt 0:00:00]} 34. h4 {[%emt 0:02:30]} Kf7 {[%emt 0:02:30]} 35. h5 {[%emt 0:05:53]} h6+ {[%emt 0:04:30]} 36. Kg4 {[%emt 0:00:15]} Nd6 {[%emt 0:07:13]} 37. Be5 {[%emt 0:05:35]} Ne4 {[%emt 0:05:59]} 38. hxg6+ {[%emt 0:06:06]} Kxg6 {[%emt 0:00:33]} 39. Kf3 {[%emt 0:00:06]} Kf5 {[%emt 0:02:30]} 40. Bd4 {[%emt 0:02:58]} h5 {[%emt 0:02:57]} 41. Kg2 {[%emt 0:01:21]} Nf6 {[%emt 0:03:09]} 42. Kh3 {[%emt 0:00:59]} Ng4 {[%emt 0:01:36]} 43. Kh4 {[%emt 0:00:45]} Kg6 {[%emt 0:00:10]} 44. Bc5 {[%emt 0:00:16]} Nh6 {[%emt 0:00:27]} 45. Bb4 {[%emt 0:00:43]} Nf5+ {[%emt 0:01:29]} 46. Kh3 {[%emt 0:00:02]} 1/2-1/2

[Event "2nd Turkish League 2017"]
[Site "Konya"]
[Date "2017.07.19"]
[Round "4"]
[White "Koc, Aylin"]
[Black "Catal, Uktenur"]
[Result "0-1"]
[ECO "B28"]
[WhiteElo "1550"]
[BlackElo "1613"]
[Annotator "NA"]
[PlyCount "128"]
[EventType "team-tourn"]
[EventCountry "TUR"]
[SourceTitle "playchess.com"]
[Source "ChessBase"]
[SourceQuality "1"]
[TimeControl "5400+30"]

1. e4 {[%emt 0:00:30]} c5 {[%emt 0:01:00]} 2. Nf3 {[%emt 0:00:00]} a6 {[%emt 0:00:00]} 3. a4 {[%emt 0:00:00]} Qc7 {[%emt 0:04:00]} 4. d4 {[%emt 0:01:30]} cxd4 {[%emt 0:00:30]} 5. Nxd4 {[%emt 0:00:30]} Nf6 {[%emt 0:02:30]} 6. Nc3 {[%emt 0:00:30]} e6 {[%emt 0:04:30]} 7. Qf3 {[%emt 0:07:30]} Nc6 {[%emt 0:06:30]} 8. Nxc6 {[%emt 0:02:30]} bxc6 {[%emt 0:00:30]} 9. Bc4 {[%emt 0:01:30]} d5 {[%emt 0:03:30]} 10. exd5 {[%emt 0:00:30]} cxd5 {[%emt 0:00:30]} 11. Bb3 {[%emt 0:00:30]} Bb7 {[%emt 0:00:30]} 12. Bf4 {[%emt 0:11:30]} Bd6 {[%emt 0:00:30]} 13. Bxd6 {[%emt 0:02:30]} Qxd6 {[%emt 0:00:30]} 14. O-O {[%emt 0:00:30]} O-O {[%emt 0:00:30]} 15. Rfe1 {[%emt 0:03:30]} Rfe8 {[%emt 0:02:30]} 16. Rad1 {[%emt 0:01:30]} Rad8 {[%emt 0:01:30]} 17. a5 {[%emt 0:05:30]} Qb4 {[%emt 0:02:30]} 18. Ba4 {[%emt 0:07:30]} Rf8 {[%emt 0:28:30]} 19. Ra1 {[%emt 0:04:30]} Qxa5 {[%emt 0:12:30]} 20. Bc6 {[%emt 0:00:30]} Qc7 {[%emt 0:00:30]} 21. Bxb7 {[%emt 0:00:30]} Qxb7 {[%emt 0:00:00]} 22. Qd3 {[%emt 0:00:30]} Rd6 {[%emt 0:03:00]} 23. Ra2 {[%emt 0:02:30]} Ra8 {[%emt 0:04:30]} 24. Rea1 {[%emt 0:01:30]} e5 {[%emt 0:01:30]} 25. Na4 {[%emt 0:02:30]} Rc6 {[%emt 0:00:59]} 26. Nc3 {[%emt 0:00:30]} e4 {[%emt 0:02:28]} 27. Qd4 {[%emt 0:01:30]} Rc4 {[%emt 0:02:08]} 28. Qe5 {[%emt 0:02:30]} Re8 {[%emt 0:00:43]} 29. Qd6 {[%emt 0:01:30]} Rc6 {[%emt 0:00:11]} 30. Qf4 {[%emt 0:02:30]} d4 {[%emt 0:00:39]} 31. Nd1 {[%emt 0:00:30]} Nd5 {[%emt 0:01:32]} 32. Qd2 {[%emt 0:00:30]} Nb4 {[%emt 0:00:21]} 33. Qxd4 {[%emt 0:02:30]} Nxc2 {[%emt 0:00:43]} 34. Qa4 {[%emt 0:01:30]} Nxa1 {[%emt 0:00:36]} 35. Rxa1 {[%emt 0:00:00]} Qb5 {[%emt 0:00:22]} 36. Qd4 {[%emt 0:03:00]} h6 {[%emt 0:01:19]} 37. Ne3 {[%emt 0:00:30]} Rec8 {[%emt 0:01:37]} 38. g3 {[%emt 0:03:30]} Qd3 {[%emt 0:01:59]} 39. Qe5 {[%emt 0:04:30]} Re6 {[%emt 0:00:39]} 40. Qf4 {[%emt 0:00:30]} Qd6 {[%emt 0:00:21]} 41. Qh4 {[%emt 0:00:30]} Qe5 {[%emt 0:00:25]} 42. Qg4 {[%emt 0:03:30]} Qg5 {[%emt 0:02:16]} 43. Qe2 {[%emt 0:00:30]} Rcc6 {[%emt 0:01:24]} 44. h4 {[%emt 0:00:30]} Qb5 {[%emt 0:00:46]} 45. Qg4 {[%emt 0:01:50]} Qxb2 {[%emt 0:01:10]} 46. Ra4 {[%emt 0:01:40]} Qf6 {[%emt 0:01:42]} 47. Rxe4 {[%emt 0:01:25]} Rxe4 {[%emt 0:00:38]} 48. Qxe4 {[%emt 0:00:20]} Rc1+ {[%emt 0:00:00]} 49. Kg2 {[%emt 0:04:02]} Qe6 {[%emt 0:01:06]} 50. Qa8+ {[%emt 0:01:11]} Rc8 {[%emt 0:00:13]} 51. Qf3 {[%emt 0:00:12]} a5 {[%emt 0:00:26]} 52. Nf5 {[%emt 0:00:25]} Re8 {[%emt 0:00:33]} 53. Ne3 {[%emt 0:01:37]} Qe4 {[%emt 0:00:39]} 54. Qxe4 {[%emt 0:00:30]} Rxe4 {[%emt 0:00:30]} 55. Kf3 {[%emt 0:00:00]} Rd4 {[%emt 0:00:00]} 56. Ke2 {[%emt 0:00:00]} Kf8 {[%emt 0:00:07]} 57. Nc2 {[%emt 0:00:07]} Rd6 {[%emt 0:00:00]} 58. Ke3 {[%emt 0:00:33]} a4 {[%emt 0:00:45]} 59. Na3 {[%emt 0:00:28]} Ke7 {[%emt 0:00:02]} 60. Ke4 {[%emt 0:00:27]} Rb6 {[%emt 0:01:05]} 61. Kd4 {[%emt 0:00:20]} Rb4+ {[%emt 0:00:21]} 62. Kc5 {[%emt 0:00:53]} Rb3 {[%emt 0:00:21]} 63. Nc4 {[%emt 0:00:08]} a3 {[%emt 0:00:30]} 64. Nd2 {[%emt 0:00:00]} Rb2 {[%emt 0:00:00]} 0-1

[Event "2nd Turkish League 2017"]
[Site "Konya"]
[Date "2017.07.19"]
[Round "4"]
[White "Hafizoglu, Bengi"]
[Black "Vanlioglu, Ece"]
[Result "1-0"]
[ECO "D37"]
[WhiteElo "1415"]
[BlackElo "1134"]
[Annotator "NA"]
[PlyCount "71"]
[EventType "team-tourn"]
[EventCountry "TUR"]
[SourceTitle "playchess.com"]
[Source "ChessBase"]
[SourceQuality "1"]
[TimeControl "5400+30"]

1. d4 {[%emt 0:00:30]} d5 {[%emt 0:01:00]} 2. Nf3 {[%emt 0:00:30]} e6 {[%emt 0:00:00]} 3. c4 {[%emt 0:00:00]} Nf6 {[%emt 0:00:00]} 4. Nc3 {[%emt 0:00:00]} Be7 {[%emt 0:00:30]} 5. Bf4 {[%emt 0:00:00]} O-O {[%emt 0:00:30]} 6. e3 {[%emt 0:00:00]} Nbd7 {[%emt 0:00:30]} 7. c5 {[%emt 0:02:30]} c6 {[%emt 0:05:30]} 8. Bd3 {[%emt 0:02:30]} b6 {[%emt 0:06:30]} 9. b4 {[%emt 0:00:30]} a5 {[%emt 0:04:30]} 10. a3 {[%emt 0:02:30]} Ba6 {[%emt 0:02:30]} 11. O-O {[%emt 0:01:30]} Ne4 {[%emt 0:07:30]} 12. Bxa6 {[%emt 0:06:30]} Nxc3 {[%emt 0:04:30]} 13. Qd3 {[%emt 0:03:30]} b5 {[%emt 0:03:30]} 14. Bb7 {[%emt 0:00:30]} Ra7 {[%emt 0:02:30]} 15. Bxc6 {[%emt 0:00:30]} Ne4 {[%emt 0:03:30]} 16. Bxb5 {[%emt 0:02:30]} h5 {[%emt 0:03:30]} 17. Bxd7 {[%emt 0:05:30]} Qxd7 {[%emt 0:00:30]} 18. Ne5 {[%emt 0:00:30]} Qc8 {[%emt 0:02:30]} 19. f3 {[%emt 0:01:30]} Nf6 {[%emt 0:03:30]} 20. b5 {[%emt 0:02:30]} Ra8 {[%emt 0:04:30]} 21. Nc6 {[%emt 0:02:30]} Bd8 {[%emt 0:00:30]} 22. Nxd8 {[%emt 0:01:30]} Qxd8 {[%emt 0:00:30]} 23. a4 {[%emt 0:00:30]} Nd7 {[%emt 0:03:30]} 24. b6 {[%emt 0:01:30]} Qc8 {[%emt 0:02:30]} 25. Qb5 {[%emt 0:03:30]} Qd8 {[%emt 0:01:30]} 26. b7 {[%emt 0:05:30]} Rb8 {[%emt 0:00:30]} 27. Bxb8 {[%emt 0:00:30]} Qxb8 {[%emt 0:00:00]} 28. c6 {[%emt 0:00:30]} Nf6 {[%emt 0:01:00]} 29. Qxa5 {[%emt 0:00:30]} Re8 {[%emt 0:02:30]} 30. Qb6 {[%emt 0:00:30]} Re7 {[%emt 0:01:30]} 31. a5 {[%emt 0:00:30]} Ne8 {[%emt 0:01:30]} 32. a6 {[%emt 0:00:30]} Nc7 {[%emt 0:00:30]} 33. a7 {[%emt 0:00:00]} Qe8 {[%emt 0:00:30]} 34. b8=Q {[%emt 0:00:00]} Qxb8 {[%emt 0:00:00]} 35. axb8=Q+ {[%emt 0:00:30]} Ne8 {[%emt 0:00:00]} 36. Q6d8 {[%emt 0:00:30]} 1-0